bitfinex-derivatives/quotes_BTCF0:USTF0_20251120
["timestamp","ask_amount","ask_price","bid_price","bid_amount"]
[1763645048939,0.010893,91897.0,91896.0,0.04432]
[1763645049141,0.03867319,91897.0,91896.0,0.04432]
[1763645050436,0.06003319,91897.0,91896.0,0.04432]
[1763645050940,0.08272319,91897.0,91896.0,0.04432]
[1763645051830,0.06003319,91897.0,91896.0,0.04432]
[1763645052743,0.03867319,91897.0,91896.0,0.04432]
[1763645052932,0.02778019,91897.0,91896.0,0.04432]
[1763645053133,0.00219803,91897.0,91896.0,0.04432]
[1763645054147,0.00016324,91906.0,91905.0,0.055212]
[1763645054439,0.00016324,91906.0,91905.0,0.04432]
[1763645054640,0.00016324,91906.0,91905.0,0.055212]
[1763645054841,0.00236127,91906.0,91905.0,0.04432]
[1763645055441,0.04641127,91906.0,91905.0,0.04432]
[1763645058436,0.00236127,91906.0,91905.0,0.04432]
[1763645058638,0.00016324,91906.0,91905.0,0.04432]
[1763645058941,0.00027196,91926.0,91925.0,0.04432]
[1763645058942,0.05521146,91926.0,91925.0,0.04432]
[1763645059142,0.08267312,91926.0,91925.0,0.04432]
[1763645060338,0.05740949,91926.0,91925.0,0.04432]
[1763645060947,0.02382999,91926.0,91925.0,0.04432]
[1763645061129,0.00027196,91926.0,91925.0,0.04432]
[1763645061330,0.00127196,91926.0,91925.0,0.04432]
[1763645061837,0.00016324,91935.0,91934.0,0.04432]
[1763645062042,0.00016324,91935.0,91934.0,0.0552085]
[1763645063243,0.00116324,91935.0,91934.0,0.0552085]
[1763645064347,0.00116324,91935.0,91934.0,0.04432]
[1763645064641,0.00216324,91935.0,91934.0,0.0552085]
[1763645064940,0.00436127,91935.0,91934.0,0.04432]
[1763645065440,0.02572127,91935.0,91934.0,0.04432]
[1763645065644,0.04841127,91935.0,91934.0,0.04432]
[1763645065845,0.04405,91927.0,91926.0,0.04432]
[1763645066139,0.05713743,91927.0,91926.0,0.04432]
[1763645068043,0.02355803,91927.0,91926.0,0.05759]
[1763645068245,0.04624803,91927.0,91926.0,0.05759]
[1763645068945,0.00219803,91927.0,91926.0,0.05759]
[1763645070340,0.00219803,91927.0,91926.0,0.04432]
[1763645070548,0.04635803,91927.0,91926.0,0.02104]
[1763645070840,0.04635803,91927.0,91926.0,0.04254]
[1763645071546,0.04635803,91927.0,91917.0,0.04421]
[1763645071547,0.0550504,91918.0,91917.0,0.04421]
[1763645071736,0.05724843,91918.0,91917.0,0.04421]
[1763645072441,0.05724843,91918.0,91917.0,0.02271]
[1763645072641,0.05724843,91918.0,91917.0,0.04496]
[1763645073835,0.05724843,91918.0,91917.0,0.02271]
[1763645074350,0.05724843,91918.0,91917.0,0.04496]
[1763645075547,0.01336,91920.0,91917.0,0.04496]
[1763645075548,0.00016324,91935.0,91934.0,0.04529]
[1763645075850,0.06940398,91955.0,91954.0,0.02304]
[1763645075851,0.054696,91955.0,91954.0,0.02304]
[1763645076051,0.05689403,91955.0,91954.0,0.02304]
[1763645076842,0.0546971,91946.0,91945.0,0.04545314]
[1763645077043,0.04600803,91946.0,91945.0,0.04545314]
[1763645077244,0.05689513,91946.0,91945.0,0.04545314]
[1763645078051,0.04600803,91946.0,91945.0,0.04545314]
[1763645079044,0.04600803,91946.0,91945.0,0.00016314]
[1763645079853,0.04600803,91946.0,91945.0,0.01105034]
[1763645080045,0.04600803,91946.0,91945.0,0.00016314]
[1763645084454,0.04600803,91946.0,91945.0,0.02320314]
[1763645085156,0.04600803,91946.0,91945.0,0.00016314]
[1763645086149,0.07126281,91946.0,91945.0,0.00016314]
[1763645087442,0.04381,91929.0,91928.0,0.05631]
[1763645087641,0.04600803,91929.0,91928.0,0.04529]
[1763645088049,0.04600803,91929.0,91928.0,0.0561792]
[1763645088249,0.04600803,91929.0,91928.0,0.04529]
[1763645088654,0.04600803,91929.0,91928.0,0.04629]
[1763645090058,0.04600803,91929.0,91928.0,0.0571792]
[1763645090860,0.04600803,91929.0,91928.0,0.04629]
[1763645092353,0.04600803,91929.0,91928.0,0.0349292]
[1763645092552,0.04600803,91929.0,91928.0,0.0571792]
[1763645093462,0.04600803,91929.0,91928.0,0.0561792]
[1763645093646,0.04600803,91929.0,91928.0,0.04629]
[1763645094262,0.04600803,91929.0,91928.0,0.04529]
[1763645094560,0.04600803,91929.0,91928.0,0.04629]
[1763645095260,0.04600803,91929.0,91928.0,0.001]
[1763645095854,0.0547002,91920.0,91919.0,0.02320314]
[1763645096055,0.05689823,91920.0,91919.0,0.04545314]
[1763645096363,0.05689823,91920.0,91919.0,0.00016314]
[1763645096553,0.05689823,91920.0,91919.0,0.02320314]
[1763645096753,0.05689823,91920.0,91919.0,0.04545314]
[1763645097651,0.00219803,91920.0,91919.0,0.04545314]
[1763645098371,0.04600803,91920.0,91919.0,0.04545314]
[1763645100862,0.02370803,91920.0,91919.0,0.04545314]
[1763645101068,0.04600803,91920.0,91919.0,0.04545314]
[1763645103267,0.0108885,91934.0,91919.0,0.04545314]
[1763645103268,0.04461314,91938.0,91937.0,0.04446]
[1763645103559,0.01324917,91938.0,91937.0,0.04446]
[1763645103957,0.05769917,91938.0,91937.0,0.04446]
[1763645105558,0.05769917,91938.0,91937.0,0.02274]
[1763645105760,0.05769917,91938.0,91904.0,0.09762166]
[1763645105761,0.0108908,91915.0,91904.0,0.09762166]
[1763645105955,0.0108929,91897.0,91896.0,0.05736]
[1763645106154,0.01309093,91897.0,91896.0,0.05736]
[1763645106358,0.00219803,91897.0,91896.0,0.05736]
[1763645106559,0.010892,91905.0,91904.0,0.04446]
[1763645106754,0.01308903,91913.0,91912.0,0.04446]
[1763645117666,0.01308903,91913.0,91912.0,0.001]
[1763645118268,0.03986655,91913.0,91912.0,0.001]
[1763645119062,0.010892,91905.0,91904.0,0.0129]
[1763645119366,0.03986515,91905.0,91903.0,0.00016314]
[1763645119571,0.02677512,91904.0,91903.0,0.00016314]
[1763645119776,0.02897315,91904.0,91903.0,0.04462314]
[1763645119964,0.00219803,91904.0,91903.0,0.04462314]
[1763645123169,0.00219803,91904.0,91903.0,0.04562314]
[1763645123368,0.00016314,91922.0,91921.0,0.04446]
[1763645123564,0.02914765,91922.0,91921.0,0.04446]
[1763645123779,0.03901192,91946.0,91944.0,0.05736]
[1763645123967,0.02898853,91945.0,91944.0,0.05736]
[1763645124773,0.03987573,91945.0,91944.0,0.05736]
[1763645125672,0.03987573,91945.0,91944.0,0.02474]
[1763645126274,0.04087573,91945.0,91944.0,0.02474]
[1763645126665,0.04087573,91945.0,91944.0,0.0129]
[1763645127278,0.04087573,91945.0,91944.0,0.03564]
[1763645127474,0.04187573,91945.0,91944.0,0.03564]
[1763645129073,0.04187573,91945.0,91944.0,0.05736]
[1763645129263,0.03098853,91945.0,91944.0,0.05736]
[1763645134986,0.00419803,91945.0,91944.0,0.05736]
[1763645138676,0.03097303,91945.0,91944.0,0.05736]
[1763645142884,0.00419803,91945.0,91944.0,0.05736]
[1763645146698,0.002,91945.0,91944.0,0.05736]
[1763645146908,0.0108832,91980.0,91944.0,0.05736]
[1763645146909,0.03901192,91983.0,91965.0,0.0547849]
[1763645147098,0.00219803,91984.0,91981.0,0.0439]
[1763645147289,0.00219803,91984.0,91983.0,0.0439]
[1763645147519,0.0108826,91984.0,91983.0,0.0439]
[1763645147796,0.0108826,91984.0,91973.0,0.01313]
[1763645147797,0.056463,91981.0,91973.0,0.01313]
[1763645147999,0.00219803,91974.0,91973.0,0.0439]
[1763645149099,0.04777803,91974.0,91973.0,0.0439]
[1763645151702,0.02471803,91974.0,91973.0,0.0439]
[1763645151907,0.04777803,91974.0,91973.0,0.0439]
[1763645152093,0.00219803,91974.0,91973.0,0.0439]
[1763645155705,0.04777803,91974.0,91973.0,0.0439]
[1763645157701,0.0564646,91967.0,91966.0,0.05703]
[1763645157906,0.0564646,91967.0,91964.0,0.00016314]
[1763645157907,0.04558,91965.0,91964.0,0.00016314]
[1763645158105,0.04777803,91965.0,91964.0,0.00016314]
[1763645158298,0.07437823,91965.0,91964.0,0.00016314]
[1763645159404,0.0564663,91953.0,91952.0,0.05703]
[1763645159593,0.04777803,91953.0,91952.0,0.05703]
[1763645160500,0.04777803,91953.0,91952.0,0.0439]
[1763645160702,0.04777803,91953.0,91944.0,0.01313]
[1763645160703,0.0564672,91945.0,91944.0,0.02259]
[1763645160933,0.05866523,91945.0,91944.0,0.0439]
[1763645161410,0.05866523,91945.0,91944.0,0.05703]
[1763645162105,0.05866523,91945.0,91944.0,0.02259]
[1763645162702,0.04403,91944.0,91943.0,0.00016314]
[1763645162903,0.04622803,91944.0,91943.0,0.00016314]
[1763645163711,0.04622803,91944.0,91928.0,0.05685]
[1763645163712,0.0540291,91929.0,91928.0,0.05685]
[1763645163909,0.05622713,91929.0,91928.0,0.04376]
[1763645164110,0.04533803,91929.0,91928.0,0.05685]
[1763645165506,0.00219803,91929.0,91928.0,0.05685]
[1763645165707,0.05622713,91929.0,91928.0,0.04376]
[1763645165910,0.05622713,91929.0,91928.0,0.04476]
[1763645166513,0.00219803,91929.0,91928.0,0.04476]
[1763645167208,0.02382803,91929.0,91928.0,0.04476]
[1763645167411,0.04533803,91929.0,91928.0,0.04576]
[1763645168197,0.04533803,91929.0,91928.0,0.04476]
[1763645168400,0.04533803,91929.0,91928.0,0.04576]
[1763645168608,0.04533803,91929.0,91928.0,0.04476]
[1763645168804,0.04533803,91929.0,91928.0,0.04576]
[1763645169001,0.04533803,91929.0,91928.0,0.04476]
[1763645172321,0.04533803,91929.0,91928.0,0.04376]
[1763645172511,0.04533803,91929.0,91928.0,0.04476]
[1763645172815,0.05622713,91929.0,91928.0,0.04476]
[1763645174011,0.04533803,91929.0,91928.0,0.04476]
[1763645174209,0.04533803,91929.0,91928.0,0.04576]
[1763645174805,0.04533803,91929.0,91928.0,0.04476]
[1763645175120,0.04533803,91929.0,91928.0,0.04576]
[1763645176919,0.00219803,91929.0,91928.0,0.04576]
[1763645177121,0.00016314,91938.0,91937.0,0.04376]
[1763645177423,0.12517633,91960.0,91951.0,0.04376]
[1763645177624,0.0108863,91953.0,91952.0,0.05685]
[1763645177920,0.05622433,91953.0,91952.0,0.04376]
[1763645178313,0.05622433,91953.0,91952.0,0.05685]
[1763645179116,0.05622433,91953.0,91952.0,0.04376]
[1763645180428,0.05622433,91953.0,91952.0,0.05685]
[1763645181024,0.04533803,91953.0,91952.0,0.05685]
[1763645181423,0.00219803,91953.0,91952.0,0.05685]
[1763645181923,0.04533803,91953.0,91952.0,0.05685]
[1763645182129,0.00219803,91953.0,91952.0,0.05685]
[1763645182650,0.00016314,91962.0,91952.0,0.05685]
[1763645182651,0.02179314,91962.0,91961.0,0.04376]
[1763645182826,0.03487647,91962.0,91961.0,0.04376]
[1763645183831,0.03487647,91962.0,91961.0,0.0546453]
[1763645183832,0.00336117,91962.0,91961.0,0.0546453]
[1763645184028,0.00436117,91962.0,91961.0,0.0546453]
[1763645184824,0.00436117,91962.0,91961.0,0.04376]
[1763645185223,0.00216314,91962.0,91961.0,0.04376]
[1763645185428,0.04530314,91962.0,91961.0,0.04376]
[1763645185620,0.04750117,91962.0,91961.0,0.04376]
[1763645186831,0.04750117,91962.0,91961.0,0.02137]
[1763645187529,0.0540263,91953.0,91952.0,0.05685]
[1763645187725,0.05622433,91953.0,91952.0,0.05685]
[1763645188232,0.05622433,91953.0,91938.0,0.01309]
[1763645188233,0.0540271,91946.0,91945.0,0.05685]
[1763645188434,0.05622513,91946.0,91945.0,0.05685]
[1763645189133,0.05622513,91946.0,91945.0,0.04376]
[1763645190634,0.00219803,91946.0,91945.0,0.04376]
[1763645190831,0.04533803,91946.0,91945.0,0.04476]
[1763645191426,0.04533803,91946.0,91945.0,0.04376]
[1763645191739,0.04533803,91946.0,91945.0,0.04476]
[1763645194625,0.04533803,91946.0,91945.0,0.04576]
[1763645195935,0.04533803,91946.0,91945.0,0.04476]
[1763645196138,0.04533803,91946.0,91945.0,0.04576]
[1763645196531,0.04533803,91946.0,91945.0,0.04476]
[1763645196840,0.07180266,91946.0,91945.0,0.002]
[1763645197152,0.07180266,91946.0,91945.0,0.001]
[1763645197328,0.04384,91944.0,91922.0,0.01096993]
[1763645197528,0.07250266,91944.0,91922.0,8.003e-05]
[1763645197826,0.07250266,91944.0,91931.0,0.01285]
[1763645198831,0.07250266,91944.0,91943.0,0.02281314]
[1763645199032,0.07250266,91944.0,91943.0,0.04452314]
[1763645199537,0.04603803,91944.0,91943.0,0.04452314]
[1763645200441,0.07251288,91944.0,91943.0,0.04552314]
[1763645200735,0.07251288,91944.0,91943.0,0.00116314]
[1763645200939,0.07251288,91944.0,91943.0,0.00016314]
[1763645201130,0.0547288,91932.0,91931.0,0.0355]
[1763645201332,0.0547288,91932.0,91931.0,0.04436]
[1763645201333,0.05692683,91932.0,91931.0,0.04436]
[1763645203440,0.05692683,91932.0,91931.0,0.04536]
[1763645204537,0.05692683,91932.0,91931.0,0.001]
[1763645205138,0.05692683,91932.0,91931.0,0.02365]
[1763645205525,0.05692683,91932.0,91931.0,0.04536]
[1763645206339,0.05692683,91932.0,91931.0,0.05721]
[1763645206636,0.05692683,91932.0,91931.0,0.05821]
[1763645207443,0.05692683,91932.0,91931.0,0.05921]
[1763645208944,0.05692683,91932.0,91931.0,0.05821]
[1763645209741,0.05692683,91932.0,91931.0,0.05721]
[1763645209944,0.05692683,91932.0,91931.0,0.05821]
[1763645210327,0.12534549,91941.0,91940.0,0.04436]
[1763645210552,0.00236117,91941.0,91940.0,0.04436]
[1763645210951,0.12518235,91950.0,91949.0,0.04436]
[1763645211143,0.12518235,91950.0,91945.0,0.01285]
[1763645211144,0.0108857,91958.0,91952.0,0.01285]
[1763645211334,0.00219803,91957.0,91956.0,0.04436]
[1763645211529,0.17990705,91966.0,91965.0,0.04436]
[1763645211734,0.05692273,91966.0,91965.0,0.04436]
[1763645212334,0.04603803,91966.0,91965.0,0.04436]
[1763645212532,0.00219803,91966.0,91965.0,0.04436]
[1763645213140,0.18876533,91975.0,91974.0,0.04436]
[1763645213341,0.00236117,91975.0,91974.0,0.04436]
[1763645214338,0.04620117,91975.0,91974.0,0.04436]
[1763645216537,0.00236117,91975.0,91974.0,0.04436]
[1763645217141,0.04620117,91975.0,91974.0,0.04436]
[1763645218344,0.0547246,91967.0,91966.0,0.05721]
[1763645218545,0.05692263,91967.0,91966.0,0.05721]
[1763645219080,0.0547254,91960.0,91959.0,0.04436]
[1763645219243,0.05692343,91960.0,91959.0,0.04436]
[1763645220554,0.0547258,91957.0,91956.0,0.00016314]
[1763645220739,0.05692383,91957.0,91956.0,0.00016314]
[1763645220944,0.05692383,91957.0,91956.0,0.02281314]
[1763645222248,0.05692383,91957.0,91956.0,0.00016314]
[1763645222644,0.08328489,91957.0,91956.0,0.00016314]
[1763645222850,0.08328489,91957.0,91956.0,0.04427314]
[1763645224455,0.08436489,91957.0,91956.0,0.04427314]
[1763645224654,0.05800383,91957.0,91956.0,0.04427314]
[1763645225044,0.04711803,91957.0,91956.0,0.04427314]
[1763645225646,0.07347791,91957.0,91956.0,0.04427314]
[1763645225945,0.04711803,91957.0,91956.0,0.04427314]
[1763645226358,0.04711803,91957.0,91956.0,0.00016314]
[1763645226649,0.07347816,91957.0,91956.0,0.00016314]
[1763645228354,0.07347816,91957.0,91944.0,0.04403]
[1763645228355,0.0558072,91945.0,91944.0,0.04403]
[1763645228661,0.0558082,91937.0,91936.0,0.05688]
[1763645228857,0.05800623,91937.0,91936.0,0.05688]
[1763645230153,0.04711803,91937.0,91936.0,0.05688]
[1763645230352,0.04711803,91937.0,91936.0,0.05788]
[1763645230549,0.04711803,91937.0,91936.0,0.001]
[1763645230756,0.04711803,91937.0,91936.0,0.02357]
[1763645231149,0.07348522,91937.0,91936.0,0.02357]
[1763645231544,0.07348522,91937.0,91936.0,0.001]
[1763645232354,0.04492,91928.0,91927.0,0.04419314]
[1763645232554,0.05800723,91928.0,91927.0,0.04419314]
[1763645233457,0.04711803,91928.0,91927.0,0.04419314]
[1763645236352,0.04711803,91928.0,91927.0,0.02273314]
[1763645236659,0.05857803,91928.0,91927.0,0.00016314]
[1763645237451,0.05857803,91928.0,91904.0,0.01349]
[1763645237452,0.0558094,91927.0,91904.0,0.01349]
[1763645237661,0.05800743,91927.0,91904.0,0.01349]
[1763645237959,0.05800743,91927.0,91906.0,0.0108918]
[1763645238147,0.05800743,91927.0,91912.0,0.01349]
[1763645238670,0.05800743,91927.0,91917.0,0.00016314]
[1763645239344,0.0558098,91923.0,91917.0,0.00016314]
[1763645239559,0.0558104,91918.0,91917.0,0.00016314]
[1763645239750,0.05800843,91918.0,91917.0,0.00016314]
[1763645241651,0.05800843,91918.0,91917.0,0.04419314]
[1763645241954,0.01308843,91918.0,91917.0,0.04419314]
[1763645242159,0.05800843,91918.0,91917.0,0.04419314]
[1763645243656,0.05800843,91918.0,91917.0,0.00016314]
[1763645244056,0.05800843,91918.0,91917.0,0.04419314]
[1763645244449,0.03636843,91918.0,91917.0,0.04419314]
[1763645245056,0.00219803,91918.0,91917.0,0.04419314]
[1763645245956,0.04711803,91918.0,91917.0,0.04419314]
[1763645246156,0.04711803,91918.0,91917.0,0.02273314]
[1763645247259,0.04711803,91918.0,91917.0,0.02373314]
[1763645247861,0.05800843,91918.0,91917.0,0.00016314]
[1763645248056,0.05800843,91918.0,91917.0,0.02273314]
[1763645248660,0.05800843,91918.0,91917.0,0.00016314]
[1763645249450,0.05800843,91918.0,91917.0,0.02157314]
[1763645249655,0.05800843,91918.0,91917.0,0.00016314]
[1763645250270,0.02313,91905.0,91904.0,0.04385]
[1763645250455,0.04815658,91905.0,91904.0,0.04385]
[1763645250959,0.04815658,91905.0,91904.0,0.057]
[1763645251362,0.04815658,91905.0,91888.0,0.024384]
[1763645251363,0.056763,91896.0,91895.0,0.00016314]
[1763645251559,0.056763,91896.0,91895.0,0.04401314]
[1763645251560,0.01317958,91896.0,91895.0,0.04401314]
[1763645251963,0.03591958,91896.0,91895.0,0.04401314]
[1763645252556,0.05904958,91896.0,91895.0,0.04401314]
[1763645253367,0.05904958,91896.0,91895.0,0.04501314]
[1763645254164,0.03591958,91896.0,91895.0,0.04401314]
[1763645254367,0.01317958,91896.0,91895.0,0.04401314]
[1763645254668,0.00228658,91896.0,91895.0,0.04401314]
[1763645257062,0.00016314,91905.0,91904.0,0.05817]
[1763645257268,0.00016314,91905.0,91904.0,0.0690621]
[1763645257665,0.04558117,91905.0,91904.0,0.05817]
[1763645258065,0.02449117,91905.0,91904.0,0.05817]
[1763645258258,0.00016314,91905.0,91904.0,0.05817]
[1763645258761,0.04558117,91905.0,91904.0,0.04505]
[1763645259063,0.04558117,91905.0,91904.0,0.05817]
[1763645259770,0.04558117,91905.0,91904.0,0.04505]
[1763645260472,0.0719839,91905.0,91904.0,0.04505]
[1763645265170,0.0719839,91905.0,91903.0,0.01312]
[1763645265171,0.04322,91897.0,91896.0,0.04505]
[1763645265369,0.04322,91897.0,91895.0,0.00016314]
[1763645265370,0.04322,91896.0,91895.0,0.00016314]
[1763645265570,0.07183079,91896.0,91895.0,0.04521314]
[1763645268680,0.08337079,91896.0,91895.0,0.00016314]
[1763645268980,0.08337079,91896.0,91875.0,0.01312]
[1763645268981,0.04322,91887.0,91875.0,0.01312]
[1763645269279,0.0541162,91869.0,91868.0,0.04505]
[1763645269482,0.05631423,91869.0,91868.0,0.04505]
[1763645270392,0.04541803,91869.0,91868.0,0.04505]
[1763645270574,0.02432803,91869.0,91868.0,0.04505]
[1763645270775,0.00219803,91869.0,91868.0,0.04505]
[1763645271666,0.00219803,91869.0,91868.0,0.0559463]
[1763645271873,0.00219803,91869.0,91868.0,0.0569463]
[1763645273082,0.00016324,91878.0,91877.0,0.04505]
[1763645273881,0.0108931,91895.0,91894.0,0.04505]
[1763645274080,0.03946323,91895.0,91894.0,0.04505]
[1763645274474,0.06159323,91895.0,91894.0,0.04505]
[1763645274784,0.08268323,91895.0,91894.0,0.04505]
[1763645275283,0.08368323,91895.0,91894.0,0.04505]
[1763645275879,0.08468323,91895.0,91894.0,0.04505]
[1763645276482,0.08368323,91895.0,91894.0,0.04505]
[1763645276879,0.07179013,91895.0,91894.0,0.04505]
[1763645281475,0.0541142,91886.0,91885.0,0.04521324]
[1763645281784,0.05631223,91886.0,91885.0,0.00016324]
[1763645282177,0.08271236,91886.0,91885.0,0.00016324]
[1763645283585,0.0562558,91873.0,91872.0,0.05691]
[1763645283786,0.05845383,91873.0,91872.0,0.04379]
[1763645284685,0.0108962,91869.0,91863.0,8.939e-05]
[1763645284881,0.01309483,91864.0,91863.0,8.939e-05]
[1763645287084,0.00219803,91864.0,91846.0,0.0002722]
[1763645287288,0.0108986,91849.0,91846.0,0.0002722]
[1763645287486,0.00219803,91847.0,91846.0,0.0002722]
[1763645288185,0.00228742,91847.0,91846.0,0.0002722]
[1763645291194,0.00228742,91847.0,91846.0,0.0012722]
[1763645291590,0.00228742,91847.0,91824.0,0.0109014]
[1763645291798,0.0108993,91843.0,91811.0,0.07814051]
[1763645292094,0.0108993,91843.0,91805.0,0.07814051]
[1763645292095,0.0109014,91826.0,91805.0,0.07814051]
[1763645292295,0.00245006,91825.0,91818.0,0.0109023]
[1763645292485,0.0109016,91824.0,91818.0,0.0109023]
[1763645292686,0.00219803,91819.0,91817.0,0.0109023]
[1763645294587,0.00219803,91819.0,91818.0,0.002]
[1763645295391,0.00219803,91819.0,91817.0,0.0119023]
[1763645295590,0.00025203,91825.0,91824.0,0.0109016]
[1763645295794,0.0009847,91825.0,91824.0,0.00219803]
[1763645298408,0.0009847,91825.0,91824.0,0.00319803]
[1763645298709,0.0009847,91825.0,91824.0,0.01409963]
[1763645300407,0.0109005,91834.0,91831.0,0.0109006]
[1763645300607,0.00073267,91833.0,91832.0,0.00219803]
[1763645301118,0.0109001,91837.0,91832.0,0.00219803]
[1763645301301,0.00073267,91836.0,91832.0,0.00219803]
[1763645301805,0.0109005,91834.0,91833.0,0.0109003]
[1763645302124,0.01163317,91834.0,91833.0,0.01309833]
[1763645302608,0.00073267,91834.0,91833.0,0.01309833]
[1763645302805,0.00016333,91844.0,91843.0,0.0108993]
[1763645303007,0.00016333,91844.0,91843.0,0.01309733]
[1763645303809,0.05851788,91883.0,91843.0,0.01309733]
[1763645303810,0.0108972,91862.0,91843.0,0.00219803]
[1763645304001,0.0108971,91862.0,91843.0,0.00219803]
[1763645304396,0.0108972,91862.0,91858.0,0.0108974]
[1763645304602,0.0108968,91865.0,91862.0,0.010897]
[1763645304802,0.0108967,91865.0,91863.0,0.01309493]
[1763645305399,0.00016333,91873.0,91863.0,0.00219803]
[1763645305602,0.0108961,91870.0,91869.0,0.010896]
[1763645305817,0.00016333,91873.0,91872.0,0.0108959]
[1763645306009,0.00016333,91873.0,91872.0,0.01309393]
[1763645306714,0.00016333,91873.0,91872.0,0.00219803]
[1763645307615,0.0108972,91861.0,91854.0,0.00016333]
[1763645307914,0.0108974,91859.0,91855.0,0.00219803]
[1763645308114,0.0108974,91859.0,91858.0,0.0108975]
[1763645308410,0.0108974,91859.0,91858.0,0.01309553]
[1763645308614,0.0108971,91863.0,91862.0,0.010897]
[1763645308809,0.00016333,91873.0,91854.0,0.00016333]
[1763645308810,0.0108978,91856.0,91855.0,0.0108978]
[1763645309016,0.0108978,91856.0,91855.0,0.01309583]
[1763645309618,0.0108974,91860.0,91859.0,0.0108973]
[1763645309918,0.00016333,91873.0,91862.0,0.010897]
[1763645310120,0.00016333,91873.0,91863.0,0.00219803]
[1763645310419,0.0108967,91865.0,91863.0,0.00219803]
[1763645310806,0.0108978,91856.0,91855.0,0.001]
[1763645311117,0.0108978,91856.0,91855.0,0.00319803]
[1763645311519,0.0108978,91856.0,91855.0,0.00219803]
[1763645312521,0.0108978,91856.0,91855.0,0.00319803]
[1763645312907,0.0108978,91856.0,91855.0,0.001]
[1763645313111,0.0108978,91856.0,91854.0,0.00016333]
[1763645313310,0.0108978,91856.0,91855.0,0.001]
[1763645313508,0.03715391,91856.0,91855.0,0.001]
[1763645314514,0.0108978,91856.0,91855.0,0.001]
[1763645314926,0.0108978,91856.0,91854.0,0.00016333]
[1763645315127,0.0108978,91856.0,91855.0,0.001]
[1763645316120,0.0108978,91856.0,91854.0,0.00116333]
[1763645318128,0.0108978,91856.0,91855.0,0.001]
[1763645318913,0.0108978,91856.0,91854.0,0.00016333]
[1763645319115,0.0108978,91856.0,91854.0,0.00116333]
[1763645320128,0.02626248,91855.0,91854.0,0.00116333]
[1763645320629,0.0108998,91839.0,91835.0,0.0109002]
[1763645320925,0.0108998,91839.0,91836.0,0.00219803]
[1763645321318,0.0108997,91840.0,91836.0,0.01309803]
[1763645321523,0.00016333,91847.0,91836.0,0.00219803]
[1763645321822,0.00016333,91847.0,91843.0,0.0108992]
[1763645322016,0.00016333,91847.0,91846.0,0.00219803]
[1763645323319,0.00016333,91847.0,91846.0,0.00319803]
[1763645324820,0.00016333,91847.0,91846.0,0.00219803]
[1763645326849,0.0109,91839.0,91829.0,0.00016333]
[1763645327027,0.0109,91839.0,91837.0,0.0108999]
[1763645327323,0.0109,91839.0,91829.0,0.00016333]
[1763645327324,0.0109,91839.0,91838.0,0.00219803]
[1763645328227,0.00016333,91847.0,91838.0,0.00219803]
[1763645328228,0.00016333,91847.0,91846.0,0.010899]
[1763645328425,0.00016333,91847.0,91846.0,0.00319803]
[1763645329127,0.00016333,91847.0,91846.0,0.01409703]
[1763645329430,0.00016333,91847.0,91846.0,0.00319803]
[1763645329620,0.00016333,91847.0,91846.0,0.00219803]
[1763645330318,0.00016333,91847.0,91846.0,0.01309703]
[1763645331830,0.00016333,91847.0,91846.0,0.01409703]
[1763645332618,0.01106213,91847.0,91846.0,0.00319803]
[1763645333024,0.00016333,91847.0,91846.0,0.00319803]
[1763645336033,0.00016333,91847.0,91846.0,0.00219803]
[1763645337024,0.00016333,91847.0,91830.0,0.07814051]
[1763645337336,0.00016333,91847.0,91832.0,0.07814051]
[1763645337541,0.0108995,91842.0,91836.0,0.0109001]
[1763645337731,0.0108995,91842.0,91837.0,0.00219803]
[1763645337927,0.0108998,91839.0,91837.0,0.00219803]
[1763645338129,0.0108996,91841.0,91837.0,0.00219803]
[1763645338329,0.00016333,91847.0,91837.0,0.00219803]
[1763645338330,0.0108992,91844.0,91838.0,0.0108999]
[1763645338530,0.0108995,91842.0,91839.0,0.00219803]
[1763645340337,0.010899,91846.0,91841.0,0.0108995]
[1763645340533,0.0108993,91844.0,91842.0,0.00219803]
[1763645345826,0.00016333,91847.0,91842.0,0.00219803]
[1763645346035,0.00016333,91847.0,91844.0,0.0108991]
[1763645346240,0.00016333,91847.0,91846.0,0.00219803]
[1763645350746,0.00016333,91847.0,91846.0,0.00319803]
[1763645351743,3.33e-06,91847.0,91846.0,0.00319803]
[1763645352442,3.33e-06,91847.0,91846.0,0.00219803]
[1763645353230,3.33e-06,91847.0,91846.0,0.00319803]
[1763645357947,0.0108973,91863.0,91862.0,0.0108969]
[1763645358133,0.0108973,91863.0,91862.0,0.00219803]
[1763645359143,0.0108973,91863.0,91846.0,0.001]
[1763645359144,0.010898,91854.0,91853.0,0.00016333]
[1763645359344,0.0108999,91838.0,91835.0,0.00219803]
[1763645359849,0.0108999,91838.0,91836.0,0.0109001]
[1763645360043,0.0108999,91838.0,91837.0,0.00219803]
[1763645360244,0.0108998,91840.0,91839.0,0.0108997]
[1763645360443,0.0108998,91840.0,91839.0,0.01309773]
[1763645361250,0.0108998,91840.0,91839.0,0.00219803]
[1763645361548,0.00016333,91863.0,91840.0,0.0108996]
[1763645361741,0.0108994,91843.0,91841.0,0.01309753]
[1763645363053,0.0108994,91843.0,91841.0,0.01409753]
[1763645364553,0.0108994,91844.0,91843.0,0.0108992]
[1763645364866,0.0108991,91846.0,91845.0,0.0108986]
[1763645365046,0.0108991,91846.0,91845.0,0.00219803]
[1763645367754,0.0108991,91846.0,91845.0,0.01309713]
[1763645368248,0.00016333,91863.0,91845.0,0.01309703]
[1763645368746,0.0108989,91847.0,91845.0,0.01309713]
[1763645369052,0.0108989,91847.0,91845.0,0.00319803]
[1763645370350,0.00016333,91863.0,91845.0,0.00319803]
[1763645370653,0.00016333,91863.0,91861.0,0.0108971]
[1763645370851,0.010895,91880.0,91862.0,0.00219803]
[1763645371054,0.0108927,91899.0,91877.0,0.0108952]
[1763645371352,0.01116628,91886.0,91885.0,0.00219803]
[1763645372354,0.00027208,91886.0,91885.0,0.00219803]
[1763645375350,0.00016333,91895.0,91894.0,0.0108933]
[1763645375551,0.00016333,91895.0,91894.0,0.01309133]
[1763645376253,0.01068238,91944.0,91894.0,0.01309133]
[1763645376254,0.21882936,91979.0,91895.0,0.1091]
[1763645376557,0.54928,92172.0,91960.0,0.00999999]
[1763645376558,0.00999999,92050.0,91960.0,0.00999999]
[1763645376865,0.0108733,92063.0,91983.0,0.0108827]
[1763645376866,0.18410108,92006.0,91983.0,0.0108827]
[1763645377159,0.0543367,92114.0,92014.0,0.054395]
[1763645377355,0.18382936,92085.0,92030.0,0.00999999]
[1763645377554,0.00016304,92059.0,92031.0,0.00219803]
[1763645377851,0.18382936,92085.0,92066.0,0.0108728]
[1763645378150,0.01105912,92136.0,92048.0,0.00016294]